Cogmind - Beta 14 @@@ ROGUE MODE // 2024.08.17 @ 23:19:46 Player: opdo Result: Destroyed by GM-KJJ(R) with Subdweller Laser Performance ------------- Evolutions (0) 0 Regions Visited (2) 400 Robots Destroyed (18) 90 Value Destroyed (332) 332 Prototype IDs (3) 60 Alien Tech Used (0) 0 Bonus (0) 0 TOTAL SCORE: 882 Bonus ------- None Cogmind --------- Core Integrity 0/250 Matter 149/300 Energy 250/250 System Corruption 0% Temperature Cool (6) Movement Treading (160) Location -10/Subcaves Parts ------- > --- POWER (1) -------- Ion Engine > --- PROPULSION (2) --- Light Treads > --- UTILITY (2) ------ Small Storage Unit Seismic Detector > --- WEAPON (2) ------- Battle Rifle Light Cannon > --- INVENTORY (8) ---- Subdweller Power Source VTOL Module VTOL Module Improved Terrain Scanner Assault Rifle Light Assault Rifle Light Assault Rifle Peak State ------------ > --- POWER ------------ Heavy Ion Engine > --- PROPULSION ------- Light Treads Aluminum Leg > --- UTILITY ---------- Small Storage Unit Seismic Detector > --- WEAPON ----------- Light Assault Rifle Mining Laser > --- INVENTORY -------- Ion Engine Light Treads Wheel VTOL Module VTOL Module VTOL Module Core Shielding [Rating: 10] Favorites ----------- Power Ion Engine Engine Ion Engine Propulsion Aluminum Leg Treads Light Treads Leg Aluminum Leg Utility Small Storage Unit Device Seismic Detector Storage Small Storage Unit Weapon Light Assault Rifle Energy Gun EM Pulse Gun Ballistic Gun Light Assault Rifle Ballistic Cannon Light Cannon Launcher Subdweller Shrapnel Launcher Special Weapon Mining Laser Build | -11 -10 -10 ------- Run | Yrd Mat Sub Slots Evolved . | . . . Power . | . . . Propulsion . | . . . Utility . | . . . Weapon . | . . . Parts Attached 26 | 7 13 6 Power 6 | 1 3 2 Engine 6 | 1 3 2 Core . | . . . Reactor . | . . . Propulsion 7 | 2 4 1 Treads 3 | . 2 1 Leg 4 | 2 2 . Wheel . | . . . Hover . | . . . Flight . | . . . Utility 2 | 2 . . Device 1 | 1 . . Storage 1 | 1 . . Processor . | . . . Hackware . | . . . Protection . | . . . Artifact . | . . . Weapon 11 | 2 6 3 Energy Gun 3 | 2 1 . Energy Cannon . | . . . Ballistic Gun 5 | . 4 1 Ballistic Cannon 1 | . . 1 Launcher 1 | . . 1 Special Weapon 1 | . 1 . Impact Weapon . | . . . Slashing Weapon . | . . . Piercing Weapon . | . . . Special Melee Weapon . | . . . Unidentified Prototypes 1 | . 1 . Parts Lost 8 | . 5 3 Power 1 | . 1 . Propulsion 3 | . 1 2 Utility . | . . . Weapon 4 | . 3 1 Highest Loss Streak 2 | . 2 2 To Critical Strikes . | . . . Average Slot Usage (%) 97 | . 97 97 Engine 13 | . 13 14 Treads 3 | . 2 6 Leg 23 | . 24 19 Device 14 | . 14 14 Storage 14 | . 14 14 Energy Gun 1 | . 1 . Ballistic Gun 22 | . 23 19 Ballistic Cannon 2 | . . 8 Peak Build Rating 10 | 7 10 10 Average Rating 8 | 5 8 8 On Entrance 5 | . 7 8 Naked Turns . | . . . Heaviest Build 17 | 15 17 16 Greatest Support 20 | 20 20 20 Greatest Overweight (x) 2 | 2 1 1 Average Overweight (x) . | . . . Largest Inventory Capacity 8 | 8 8 8 Average Capacity 7 | 7 8 8 Most Carried 8 | 5 8 8 Average Carried 7 | 3 7 7 Final Capacity 8 | 8 8 8 Final Carried 8 | 5 8 7 Class Distribution -------------------- 56% | Scavenger-Mutant 43% | Mutant Dominant Class ---------------- Scavenger-Mutant | -10/Materials Mutant | -10/Subcaves Resources | -11 -10 -10 ----------- Run | Yrd Mat Sub Matter Collected 506 | 253 164 89 Remotely . | . . . Salvage Created 497 | 111 366 20 Parts 35 | 7 28 . Haulers Intercepted 1 | . 1 . Recyclers Shooed 1 | 1 . . Parts Field Recycled . | . . . Retrieved Matter . | . . . Parts Self-Destructed 5 | . . 5 Prevented . | . . . Kills | -11 -10 -10 ------- Run | Yrd Mat Sub Combat Hostiles Destroyed 14 | . 13 1 Guns 13 | . 12 1 AOE 1 | . 1 . Classes Destroyed 6 | 2 3 1 Tunneler 2 | 1 1 . Hauler 1 | . 1 . Recycler 1 | 1 . . Swarmer 8 | . 8 . Grunt 5 | . 5 . Subdweller 1 | . . 1 Best Kill Streak 6 | 2 6 1 Combat Bots Only 6 | . 6 1 Max Kills in Single Turn 2 | 1 2 1 Gunslinging 1 | . 1 . Exploded 1 | . 1 . Melee . | . . . Uniques/NPCs Destroyed . | . . . Combat | -11 -10 -10 -------- Run | Yrd Mat Sub Hostile Shots Fired 117 | . 90 27 Missed 32 | . 22 10 Damage Taken 1247 | . 768 479 Core 253 | . 125 128 Absorbed by Shields . | . . . Core Remaining (%) 100 | 100 . . Volleys Fired 90 | 5 66 19 Largest 2 | 2 2 2 Hottest 120 | 80 120 60 Shots Fired 151 | 10 103 38 Gun 131 | 10 101 20 Cannon 17 | . . 17 Launcher 1 | . . 1 Special 2 | . 2 . Kinetic 114 | . 76 38 Thermal 9 | . 9 . Explosive . | . . . Electromagnetic 28 | 10 18 . Robot Hit Streak 10 | 5 10 7 Robot Miss Streak 3 | 1 3 2 Penetration Max . | . . . Secondary Targets 2 | . 2 . Max Gunslinging Chain 1 | . 1 . Shots Hit Robots 90 | 6 61 23 Core Hits 33 | 3 26 4 Critical Kills . | . . . Critical Parts Destroyed . | . . . Critical Strikes 2 | . . 2 Blast 2 | . . 2 Melee Attacks . | . . . Impact . | . . . Slashing . | . . . Piercing . | . . . Sneak Attacks . | . . . Combat Hostiles . | . . . Follow-up Attacks . | . . . Damage Inflicted 1243 | 92 710 441 Guns 803 | 92 542 169 Cannons 157 | . . 157 Explosions 279 | . 164 115 Melee . | . . . Ramming 4 | . 4 . Kinetic 859 | . 418 441 Thermal 78 | . 78 . Explosive 119 | . 119 . Electromagnetic 183 | 92 91 . Impact . | . . . Slashing . | . . . Piercing . | . . . Highest Corruption . | . . . Average Corruption . | . . . Corruption Purged . | . . . Corruption Blocked . | . . . Overload Shots . | . . . Overflow Damage 20 | . 20 . Projectiles . | . . . Explosions 20 | . 20 . Melee . | . . . Knockbacks 2 | . . 2 Impact . | . . . Kinetic 2 | . . 2 Secondary . | . . . Self-Inflicted Damage 114 | . 114 . Shots 1 | . 1 . Rammed . | . . . Targets Rammed 2 | . 2 . Kicked 2 | . 2 . Crushed . | . . . Highest Temperature 108 | 54 108 . Average Temperature 25 | 25 25 . Received Heat Transfer 120 | . 102 18 Siege Activations . | . . . Robots Corrupted . | . . . Combat Hostiles . | . . . Parts Fried . | . . . Impact Corruptions . | . . . Robots Melted . | . . . Combat Hostiles . | . . . Parts Melted . | . . . Heat Transferred 125 | . 125 . Parts Sabotaged . | . . . Parts Stolen . | . . . Parts Stripped . | . . . Power Chain Reactions 1 | . 1 . Alert | -11 -10 -10 ------- Run | Yrd Mat Sub Peak Influence 346 | 10 346 . Initial 6 | . 6 . Average 152 | 1 161 . Maximum Alert Level 1 | . 1 . Low Security (%) 58 | 100 56 . Level 1 41 | . 43 . Level 2 . | . . . Level 3 . | . . . Level 4 . | . . . Level 5 . | . . . High Security . | . . . Max Security . | . . . Squads Dispatched 2 | . 2 . Investigation 1 | . 1 . Extermination . | . . . Reinforcement 1 | . 1 . Assault . | . . . Garrison . | . . . Intercept . | . . . Searches Triggered . | . . . Construction Impeded . | . . . Haulers Reinforced . | . . . Active Scanning Responses . | . . . Cargo Convoy Interrupts . | . . . Stealth | -11 -10 -10 --------- Run | Yrd Mat Sub Distress Signals 1 | . 1 . Communications Jammed . | . . . Distress Signals . | . . . Times Spotted 27 | . 23 4 Peak Tracking Total 6 | . 6 2 Tactical Retreats 2 | . 2 . Traps | -11 -10 -10 ------- Run | Yrd Mat Sub Traps Triggered 2 | . 2 . Indirectly . | . . . Trap Hack Attempts . | . . . Triggered . | . . . Disarmed . | . . . Reprogrammed . | . . . Reused . | . . . Traps Extracted . | . . . Installed . | . . . Triggered . | . . . Machines | -11 -10 -10 ---------- Run | Yrd Mat Sub Machines Disabled 2 | . 2 . Max in Single Turn 1 | . 1 . Machines Repaired . | . . . Machines Dismantled . | . . . Machines Sabotaged . | . . . Overloaded Fab Kills . | . . . Hacking | -11 -10 -10 --------- Run | Yrd Mat Sub Machines Accessed 4 | . 4 . Terminals 4 | . 4 . Fabricators . | . . . Repair Stations . | . . . Recycling Units . | . . . Scanalyzers . | . . . Garrison Access . | . . . Total Hacks 13 | . 13 . Successful 5 | . 5 . Failed 8 | . 8 . Catastrophic . | . . . Database Lockouts . | . . . Manual 13 | . 13 . Terminals 13 | . 13 . Fabricators . | . . . Repair Stations . | . . . Recycling Units . | . . . Scanalyzers . | . . . Garrison Access . | . . . Terminal Hacks 4 | . 4 . Robot Analysis 1 | . 1 . Prototype ID Bank 1 | . 1 . Terminal Index 1 | . 1 . Zone Layout 1 | . 1 . Fabricator Hacks . | . . . Repair Station Hacks . | . . . Recycling Unit Hacks . | . . . Scanalyzer . | . . . Garrison Access Hacks . | . . . Unauthorized Hacks 1 | . 1 . Terminals 1 | . 1 . Botnet 1 | . 1 . Fabricators . | . . . Repair Stations . | . . . Recycling Units . | . . . Scanalyzers . | . . . Garrison Access . | . . . Data Cores Recovered . | . . . Used . | . . . Hacking Detections 4 | . 4 . Full Trace Events . | . . . Feedback Events . | . . . Feedback Blocked . | . . . Robot Schematics Acquired . | . . . Robots Built . | . . . Authchips . | . . . Time . | . . . Total Robot Build Rating . | . . . Part Schematics Acquired . | . . . Parts Built . | . . . Authchips . | . . . Time . | . . . Total Part Build Rating . | . . . Parts Repaired . | . . . Time . | . . . Parts Recycled . | . . . Recycled Matter . | . . . Retrieved Matter . | . . . Retrieved Components . | . . . Parts Scanalyzed . | . . . Part Schematics Acquired . | . . . Parts Damaged . | . . . Bothacking | -11 -10 -10 ------------ Run | Yrd Mat Sub Used RIF Installer . | . . . Robots Hacked . | . . . Non-combat . | . . . Combat . | . . . Robot Hacks Applied . | . . . Relay Couplers Released . | . . . Fabnet Peak Effective % . | . . . Robots Rewired . | . . . Allies Hacked . | . . . Hacks Repelled . | . . . Allies | -11 -10 -10 -------- Run | Yrd Mat Sub Total Allies . | . . . Largest Group . | . . . Highest-Rated Group . | . . . Highest-Rated Ally . | . . . Total Orders . | . . . Ally Attacks . | . . . Total Damage . | . . . Kills . | . . . Allies Corrupted . | . . . Allies Melted . | . . . Intel | -11 -10 -10 ------- Run | Yrd Mat Sub Robot Analysis Total 1 | . 1 . Derelict Logs Recovered . | . . . Drone Launches . | . . . Drone Recoveries . | . . . Exploration | -11 -10 -10 ------------- Run | Yrd Mat Sub Turns Passed 1747 | 73 1207 467 Spaces Moved 738 | 33 425 280 Core 5 | 5 . . Treads 191 | . 80 111 Legs 542 | 28 345 169 Wheels . | . . . Hover . | . . . Flight . | . . . Fastest Speed 50 | 50 120 120 Average Speed 136 | 130 133 142 Slowest Speed 190 | 190 190 190 Overloaded Moves . | . . . Propulsion Burnouts . | . . . Robots Hopped . | . . . Cave-ins Triggered . | . . . Exploration Rate (%) 36 | 2 84 23 Regions Visited 2 Branch Regions 1 Pre-discovered Areas . | . . . Known Exits Taken . | . . . Unknown Exits Taken 2 | 1 1 . Scrap Searched 2 | . . 2 Spaces Dug 2 | . 2 . Terrain Destroyed 82 | . 68 14 Melee . | . . . Projectile 2 | . 2 . AOE 80 | . 66 14 Terrain Rammed . | . . . Walls Destroyed . | . . . Machines Disabled . | . . . Actions | -11 -10 -10 --------- Run | Yrd Mat Sub Total 1336 | 49 974 313 Wait 451 | . 447 4 Move 736 | 32 424 280 Hop . | . . . Pick Up 15 | 5 9 1 Fast Attach 14 | 7 7 . Attach 7 | . 4 3 Detach 4 | . 3 1 Swap 5 | . 2 3 Drop 12 | . 10 2 Fire 90 | 5 66 19 Melee . | . . . Ram . | . . . Kick 2 | . 2 . Crush . | . . . Escape Stasis . | . . . Rewire . | . . . Trap . | . . . Miscellaneous . | . . . Route ------- -11/Scrapyard -10/Materials (discovered 5 exits: [*Mat x3] / [*Min] / [*Sub]) -10/Subcaves (discovered 1 exit: [*Mat]) History --------- Turn | Location | Event 19 | -11/Scrapyard | Discovered new exit (range 16) 74 | -11/Scrapyard | Entered Materials 91 | -10/Materials | Discovered new exit (range 15) 187 | -10/Materials | Discovered new exit (range 10) 317 | -10/Materials | Build established: Mutant 535 | -10/Materials | Discovered new exit (range 16) 716 | -10/Materials | Discovered new exit (range 13) 772 | -10/Materials | Build established: Scavenger-Mutant 1243 | -10/Materials | Discovered new exit (range 6) 1281 | -10/Materials | Entered Subcaves 1302 | -10/Subcaves | A swath of the cavern ceiling suddenly collapsed 1458 | -10/Subcaves | Core integrity fell below 50% 1461 | -10/Subcaves | Discovered new exit (range 11) 1735 | -10/Subcaves | Core integrity fell below 20% 1747 | -10/Subcaves | Build established: Mutant 1748 | -10/Subcaves | Destroyed by GM-KJJ(R) with Subdweller Laser Last Messages --------------- 01403_ Found Mak. Light Armor Plating. 01403_ Found Sub. Shrapnel Launcher. 01403_ Found 70 Matter. 01407_ Dropped VTOL Module. 01407_ Acquired Sub. Shrapnel Launcher. 01461_ EXIT=FOUND 01461_ Sub. Shrapnel Launcher destroyed. 01466_ Aluminum Leg destroyed. 01471_ 3M-MDG(R) knocked back. 01481_ 3M-MDG(R) destroyed. 01496_ Acquired 4 matter. 01518_ Acquired 6 matter. 01525_ Acquired 20 matter. 01543_ Sub. Power Source shoots sparks and powers down. 01723_ GM-KJJ(R) knocked back. 01736_ Aluminum Leg destroyed. 01741_ PM-XGF(R) Sub. Optics blasted off. 01747_ PM-XGF(R) Disposable Heat Sink blasted off. Map ----- +----------------------------------------------------+ | ???????????????# #???# ##?????? | | ???????????????### #???# #??????? | | ?????????????????# ???## ##??????? | | ????????????????? ## ##??????? | | ???????????????? ##?????? | | ???????????????# ##????? | | ???????????????# ## ##???? | | ???????????????# ### #???? | | ????????????????? #?## ##??? | | ?????????????????? #?## #### | | ?????????????????? #####?# # | | ?????????????????? ??????# # | | ??????????????????? ??##??## ## | | ???????????????????? ?## #??# ##? | | ????????????????????? #?## ### ##?? | | ??????????????????????? ???# ###? | | ???????????????????????????# ## ## | | ???????????????????????????## #### # | | ???????????????#????????????# ### ## | | ???????????????# ???????????## #? | | ???????????????# ????????????# #? | | ???????????????# ??????????## #### #? | | ???????????????# ??????????# #???# # | | ??????????????## ?????????# ##### # | | ??????????????# ########?# # | | ??????????????# @ R! #### # | | ??????????????# # ## %## ## ## | | ??????????????# ##??## #?# #? | | ??????????????# ?????# #??# #? | | ??????????????# R?????# ##???# # | | ??????????????## $?????# # ###?????###### | | ???????????????###?????# ## #????????????? | | ?????????????????????? ### #????????????? | | ????????????????????? #?? #????????????? | | ????????????????????# ?? ##????????????? | | ???????????????????# ?? ##?????????????? | | ???????????????????# ?? #???????????????? | | ??????????????????? ? ????????????????? | | ?????????????????? ?? ????????????????? | | ????????????????? % ?? ????????????????? | | ???????????????? ??? ?????????????????? | | ?????????????????""????? ?????????????????? | | ????????????????????????? ?????????????????? | | ???????????????????????????????????????????? | | ???????????????????????????????????????????? | | ???????????????????????????????????????????? | | ???????????????????????????????????????????? | | ???????????????????????????????????????????? | | ???????????????????????????????????????????? | | ???????????????????????????????????????????? | +----------------------------------------------------+ Best States ------------- Heat Dissipation 25 Energy Generation 15 Energy Capacity 280 Matter Stores 300 Matter Capacity 300 Sight Range 16 Terrain Scan Density 10 Evasion (%) 55 Recoil Reduction 1 Item Schematics ----------------- None Robot Schematics ------------------ None Fabricated ------------ Nothing Alien Tech Used ----------------- None Achievements -------------- None Challenges ------------ None Game ------ Seed DefenseSigixBotcube Manual? 0 Play Time 00:10:46 Cumulative 56.4 hours Start 2024.08.17 @ 23:10:46 End 2024.08.17 @ 23:19:46 Sessions 1 Manual Loads 0 Difficulty Rogue Special Mode None Game No. 168 Rogue 166 Adventurer 2 Explorer 0 Win Type - Total 0 Types 0/0/0/0/0/0/0/0/0 Lore% 47 Gallery% 49 Achievement% 37 Wizard Run 0 Options --------- Layout 2 ASCII 0 Keyboard 0 Movement Arrows Keybinds 0 Fullscreen 2 Font 24/Smallcaps Map View 50x44 Zoom Use 0% Tactical HUD 1 Map Filters NONE Filters NONE Steam 1 RUN: 5d6a4949-d4ea-4b75-92e4-afa711d09d94